Cogmind - Beta 14 @@@ ROGUE MODE // 2025.03.19 @ 00:01:06 Player: Zaros426 Result: Destroyed by G-67 Veteran with Plasma Rifle Performance ------------- Evolutions (7) 3500 Regions Visited (25) 5000 Robots Destroyed (436) 2180 Value Destroyed (17529) 17529 Prototype IDs (72) 1440 Alien Tech Used (0) 0 Bonus (8726) 8726 TOTAL SCORE: 38375 Bonus ------- High Alert Combat Kills 4037 Follower Combat Kills 1404 Entered Garrisons 800 Used RIF Installer 2500 Aligned with FarCom 300 Met Data Miner 300 Friendly Fire -615 Cogmind --------- Core Integrity 0/1300 Matter 197/300 Energy 4/100 System Corruption 0% Temperature Cool (37) Movement Core (50) Location -3/Research Parts ------- > --- POWER (3) -------- (None) > --- PROPULSION (6) --- (None) > --- UTILITY (8) ------ Advanced Visual Processing Unit Core Analyzer Advanced Reaction Control System Improved Corruption Screen > --- WEAPON (4) ------- (None) > --- INVENTORY (5) ---- Particle Reactor Humpback Improved Force Field Nova Cannon Peak State ------------ > --- POWER ------------ Reinforced Fission Core Micro Fission Core Light Antimatter Reactor > --- PROPULSION ------- Enhanced Armored Leg Enhanced Armored Leg Enhanced Armored Leg Enhanced Armored Leg > --- UTILITY ---------- Advanced Heat Sink Huge Storage Unit Advanced Energy Well Advanced Targeting Computer Improved Medium Armor Plating Advanced Thermal Shield Improved Force Field Relay Coupler [NC] > --- WEAPON ----------- XL Autogun Array > --- INVENTORY -------- Armored Medium Treads Armored Medium Treads Armored Heavy Treads Armored Wheel Energy Well Matter Compressor Advanced Terrain Scan Processor Transmission Jammer Advanced ECM Suite Improved Force Field Relay Coupler [NC] Relay Coupler [Sentry] Relay Coupler [Hunter] Relay Coupler [Heavy] Advanced Drone Bay Heavy Disruptor Cannon Heavy Disruptor Cannon Enhanced Nova Cannon Hypervelocity Coil Gun Railgun Improved Remote Datajack [Rating: 133] Favorites ----------- Power Heavy Ion Engine Engine Heavy Ion Engine Power Core Enhanced Nuclear Core Reactor Antimatter Reactor Propulsion Armored Wheel Treads Armored Treads Leg Enhanced Armored Leg Wheel Armored Wheel Hover Unit Antigrav System Flight Unit Improved VTOL Module Utility Huge Storage Unit Device Improved Cooling System Storage Huge Storage Unit Processor Advanced Visual Processing Unit Hackware Hacking Suite Protection Hardened Light Armor Plating Weapon Improved Assault Rifle Energy Gun Particle Gun Energy Cannon Heavy Disruptor Cannon Ballistic Gun Improved Assault Rifle Ballistic Cannon Magnetic Acceleration Cannon Launcher Mini Grenade Launcher Special Weapon Remote Datajack Impact Weapon Great Maul Slashing Weapon Mining Claw Special Melee Weapon Improved Datajack Build | -11 -10 -10 -9 -9 -9 -8 -8 -8 -8 -8 -7 -7 -7 -7 -6 -6 -6 -5 -5 -5 -5 -4 -4 -4 -3 ------- Run | Yrd Mat Min Mat Min Exi Min Mat Gar Mat Gar Fac Low Low Dat Pro Fac Gar Fac Was Fac Gar Fac Upp Upp Res Slots Evolved 14 | . . . 2 . . . 2 . . . 2 . . . . 2 . 2 . . . 2 . . 2 Power 2 | . . . . . . . . . . . . . . . . 1 . 1 . . . . . . . Propulsion 4 | . . . 1 . . . . . . . . . . . . 1 . . . . . . . . 2 Utility 6 | . . . . . . . 1 . . . 2 . . . . . . 1 . . . 2 . . . Weapon 2 | . . . 1 . . . 1 . . . . . . . . . . . . . . . . . . Parts Attached 639 | 6 17 14 60 1 10 7 17 14 18 32 26 24 6 4 7 57 58 8 13 19 73 118 16 1 13 Power 63 | 1 1 1 6 . . . . . 3 . 2 . . . 1 6 5 1 6 1 14 12 1 . 2 Engine 27 | 1 1 1 4 . . . . . 3 . 1 . . . 1 4 4 . . . 7 . . . . Core 20 | . . . 2 . . . . . . . 1 . . . . 1 1 1 . 1 6 6 1 . . Reactor 16 | . . . . . . . . . . . . . . . . 1 . . 6 . 1 6 . . 2 Propulsion 177 | 2 2 3 19 1 4 4 12 9 7 12 6 11 1 3 . 10 15 3 . 6 13 20 10 . 4 Treads 78 | 2 2 . 6 . 1 2 6 6 3 6 3 7 1 . . 8 9 . . 2 6 . 8 . . Leg 10 | . . . . . . . . . . . . . . . . . . . . . . 10 . . . Wheel 84 | . . 3 13 1 3 2 6 3 3 6 3 4 . 3 . 2 6 3 . 4 7 10 2 . . Hover 4 | . . . . . . . . . . . . . . . . . . . . . . . . . 4 Flight 1 | . . . . . . . . . 1 . . . . . . . . . . . . . . . . Utility 183 | 1 4 . 12 . . 2 2 . . 7 13 8 2 . 5 24 17 3 5 7 19 40 5 1 6 Device 96 | . 1 . 3 . . 1 . . . 2 8 1 2 . 3 15 10 2 3 5 10 24 3 1 2 Storage 24 | 1 3 . 2 . . . . . . . 1 5 . . 1 1 . . . . 3 3 2 . 2 Processor 13 | . . . . . . . 1 . . . 2 2 . . . 1 2 . . . . 3 . . 2 Hackware 21 | . . . 1 . . . 1 . . 4 2 . . . . 1 1 1 1 . 5 4 . . . Protection 29 | . . . 6 . . 1 . . . 1 . . . . 1 6 4 . 1 2 1 6 . . . Artifact . | . . . . . . . . . . . . . . . . . . . . . . . . . . Weapon 216 | 2 10 10 23 . 6 1 3 5 8 13 5 5 3 1 1 17 21 1 2 5 27 46 . . 1 Energy Gun 37 | 2 9 6 4 . . . . . . . . . . . . 5 7 . . . 1 3 . . . Energy Cannon 28 | . . . . . . . . . . . . . . . . . 1 . 1 1 9 15 . . 1 Ballistic Gun 109 | . . . 14 . 4 1 2 3 7 6 3 3 3 . 1 10 11 1 . 4 12 24 . . . Ballistic Cannon 3 | . . . . . . . . . . . . . . . . . . . . . 3 . . . . Launcher 6 | . . 4 2 . . . . . . . . . . . . . . . . . . . . . . Special Weapon 10 | . . . . . . . . . . . . . . . . 1 2 . 1 . 2 4 . . . Impact Weapon 14 | . . . 3 . . . 1 1 1 4 2 1 . . . 1 . . . . . . . . . Slashing Weapon 1 | . 1 . . . . . . . . . . . . . . . . . . . . . . . . Piercing Weapon . | . . . . . . . . . . . . . . . . . . . . . . . . . . Special Melee Weapon 8 | . . . . . 2 . . 1 . 3 . 1 . 1 . . . . . . . . . . . Unidentified Prototypes 11 | . . . 2 . . . . . 1 . 1 . 1 . . 1 1 . . . . 4 . . . Corrupted Parts 1 | . . . . . . . . . . . . . . . . . . . . . . 1 . . . System Corruption 5 | . . . . . . . . . . . . . . . . . . . . . . 5 . . . Parts Lost 132 | . . 4 8 . . . . . 1 . 1 1 4 . . 13 19 . . 3 25 30 11 . 12 Power 24 | . . 1 1 . . . . . 1 . . . . . . 2 3 . . 1 6 7 1 . 1 Propulsion 37 | . . 2 3 . . . . . . . . . 1 . . 4 6 . . . 4 5 6 . 6 Utility 30 | . . . 2 . . . . . . . 1 . . . . 3 1 . . 1 5 9 3 . 5 Weapon 41 | . . 1 2 . . . . . . . . 1 3 . . 4 9 . . 1 10 9 1 . . Highest Loss Streak 12 | . . 2 4 . . . . . 1 . 1 1 3 . . 6 6 . . 2 9 11 9 . 12 To Critical Strikes 1 | . . . . . . . . . . . . . . . . . . . . . . 1 . . . Average Slot Usage (%) 92 | . 99 93 98 100 100 100 99 100 97 99 99 99 89 84 87 97 81 90 87 76 86 83 57 51 30 Engine 6 | . 14 13 8 11 11 11 9 9 7 9 2 . . . 3 6 7 11 5 . 3 2 . . . Core 2 | . . . 2 . . . . . . . 4 7 7 7 3 2 . 2 2 . 4 7 . 5 1 Treads 12 | . 28 9 8 11 6 . 15 12 23 16 . 13 22 14 . 14 14 . . 1 9 4 4 10 3 Wheel 11 | . . 13 24 22 26 32 11 15 3 10 22 9 . 8 23 11 5 21 23 18 11 6 11 . . Device 7 | . 13 14 3 . . 1 . . . 6 9 5 6 7 7 11 8 9 4 6 15 12 2 14 6 Storage 9 | . 14 14 11 11 11 11 9 9 9 9 7 13 9 7 10 6 6 5 5 5 8 9 6 5 1 Processor 5 | . . . . . . . 8 9 9 2 13 17 9 7 7 8 2 11 5 . . 4 13 10 12 Hackware 2 | . . . . . . . 8 9 9 4 6 . . . . 1 . . 2 . 3 7 12 5 1 Protection 2 | . . . 6 11 11 9 . . . 5 . . . . . 3 5 . 2 4 2 2 . . . Energy Gun 3 | . 27 13 8 . . . . . . . . . . . . 5 4 . . . . . . . . Ballistic Gun 21 | . . . 22 33 25 28 35 27 35 27 28 26 29 28 30 18 19 21 17 16 9 5 1 . . Peak Build Rating 133 | 6 13 13 26 23 30 30 41 41 45 45 54 56 65 65 64 72 92 83 99 109 96 133 67 65 65 Average Rating 51 | 5 11 12 21 23 26 29 39 39 40 42 50 53 61 63 50 63 72 73 84 93 80 104 49 64 37 On Entrance 47 | . 6 13 13 23 23 29 30 38 41 41 41 49 56 65 62 47 70 74 73 99 73 91 56 62 65 Naked Turns . | . . . . . . . . . . . . . . . . . . . . . . . . . . Heaviest Build 201 | 14 53 53 102 102 102 102 105 101 102 112 111 104 110 110 113 133 137 132 201 200 157 180 106 48 48 Greatest Support 100 | 40 40 40 36 24 36 36 60 60 60 60 36 60 60 60 36 78 100 48 48 48 48 85 100 54 54 Greatest Overweight (x) 13 | . 1 5 5 4 4 2 2 8 2 4 3 2 1 3 3 5 9 5 4 8 6 13 4 . 4 Average Overweight (x) 2 | . . 2 2 4 3 2 1 3 1 1 2 1 1 1 2 2 3 2 2 3 5 4 1 . . Largest Inventory Capacity 25 | 8 20 20 25 25 25 25 25 25 25 25 25 25 25 25 25 25 25 25 25 25 25 25 25 5 5 Average Capacity 23 | 7 15 20 22 25 25 25 25 25 25 25 25 25 25 25 25 25 25 25 25 25 25 25 23 5 5 Most Carried 25 | 6 19 19 25 25 25 25 25 25 25 25 25 25 25 22 25 25 25 25 25 25 25 25 22 5 5 Average Carried 22 | 2 13 17 21 25 24 25 24 25 24 24 24 24 22 22 24 22 23 24 24 23 24 23 17 4 4 Final Capacity 25 | 8 20 20 25 25 25 25 25 25 25 25 25 25 25 25 25 25 25 25 25 25 25 25 5 5 5 Final Carried 25 | 6 17 18 25 25 25 25 25 25 25 24 24 25 22 22 25 21 25 25 25 25 25 22 5 4 5 Class Distribution -------------------- 28% | Skirmisher 17% | Tank 15% | Mutant 10% | Scavenger-Tank 10% | Gunner 4% | Bothacker-Tank 4% | Scavenger-Gunner 3% | Bothacker-Gunner Dominant Class ---------------- Mutant | -10/Materials Mutant | -10/Mines Tank | -9/Materials Tank | -9/Mines Mutant | -9/Exiles Skirmisher | -8/Mines Skirmisher | -8/Materials Skirmisher | -8/Garrison Skirmisher | -8/Materials Tank | -8/Garrison Skirmisher | -7/Factory Gunner | -7/Lower Caves Skirmisher | -7/Lower Caves Skirmisher | -7/Data Miner Tank | -6/Proximity Caves Tank | -6/Factory Scavenger-Tank | -6/Garrison Scavenger-Gunner | -5/Factory Scavenger-Tank | -5/Waste Scavenger-Tank | -5/Factory Scavenger-Tank | -5/Garrison Bothacker-Tank | -4/Factory Bothacker-Mutant | -4/Upper Caves Mutant | -4/Upper Caves Mutant | -3/Research Resources | -11 -10 -10 -9 -9 -9 -8 -8 -8 -8 -8 -7 -7 -7 -7 -6 -6 -6 -5 -5 -5 -5 -4 -4 -4 -3 ----------- Run | Yrd Mat Min Mat Min Exi Min Mat Gar Mat Gar Fac Low Low Dat Pro Fac Gar Fac Was Fac Gar Fac Upp Upp Res Matter Collected 19697 | 260 331 259 1374 118 . 126 807 56 955 384 1339 458 2052 . 784 2017 1784 243 604 497 2088 3051 92 . 18 Remotely . | . . . . . . . . . . . . . . . . . . . . . . . . . . Salvage Created 22220 | 113 844 150 2512 212 . 55 1204 56 1563 275 1114 162 367 . 329 2561 2294 286 1421 943 1544 4214 . . 1 Parts 1084 | 14 43 5 171 10 . 5 73 2 81 20 74 9 21 . 21 111 87 11 19 52 66 189 . . . Haulers Intercepted 26 | . 2 . 6 . . . 6 . 5 . 1 . . . . 2 . . . 1 . 3 . . . Recyclers Shooed 11 | . 1 1 . . . . . . . . 1 . . . . 2 . 1 . 1 . 4 . . . Parts Field Recycled . | . . . . . . . . . . . . . . . . . . . . . . . . . . Retrieved Matter . | . . . . . . . . . . . . . . . . . . . . . . . . . . Parts Self-Destructed 59 | . . . . . . . . . . . . 23 15 . 21 . . . . . . . . . . Prevented . | . . . . . . . . . . . . . . . . . . . . . . . . . . Kills | -11 -10 -10 -9 -9 -9 -8 -8 -8 -8 -8 -7 -7 -7 -7 -6 -6 -6 -5 -5 -5 -5 -4 -4 -4 -3 ------- Run | Yrd Mat Min Mat Min Exi Min Mat Gar Mat Gar Fac Low Low Dat Pro Fac Gar Fac Was Fac Gar Fac Upp Upp Res Combat Hostiles Destroyed 312 | . 19 19 45 2 . 1 10 1 16 6 13 1 6 . 8 34 38 3 5 12 31 41 . . 1 Melee 1 | . . . . . . . . . . . . . . . . . . . . . . . . . 1 Guns 255 | . 19 2 35 2 . 1 10 1 16 6 13 1 6 . 8 27 36 3 4 9 22 34 . . . Cannons 12 | . . . . . . . . . . . . . . . . . . . . 2 8 2 . . . AOE 35 | . . 17 10 . . . . . . . . . . . . 6 2 . . . . . . . . Classes Destroyed 27 | 2 6 1 6 . . 1 . . . 1 . 2 2 . . . 3 . 1 . 2 . . . . Worker 33 | . 1 . 8 2 . . 5 . 3 . 5 . . . . 4 . . . 1 . 4 . . . Builder 20 | . . . 4 . . . 3 . 1 . 1 . . . . 2 . . . 2 . 7 . . . Tunneler 7 | 3 1 . 1 . . 1 . . . . 1 . . . . . . . . . . . . . . Hauler 26 | . 2 . 6 . . . 6 . 5 . 1 . . . . 2 . . . 1 . 3 . . . Recycler 25 | 1 . 1 5 1 . . 1 . 4 . 5 . . . . 2 . 1 . . . 4 . . . Mechanic 4 | . . . 2 . . . . . . . . . . . . 1 . . . . . 1 . . . Operator 7 | . 2 . 2 . . . 1 . . . 1 . . . . 1 . . . . . . . . . Watcher 21 | . 3 . 3 . . . 4 . 2 . 3 . . . . 1 . 1 . 1 . 3 . . . Swarmer 49 | . 3 . 10 . . . . . . 1 8 . . . 4 . 8 2 . 2 9 1 . . 1 Cutter 4 | . . . . . . . . . . . . . . . . . . . . . 4 . . . . Saboteur 2 | . . . . . . . . . . . . . . . . . 2 . . . . . . . . Grunt 133 | . 16 2 24 2 . . 5 . 11 1 1 . 4 . 2 17 11 . . 5 10 22 . . . Brawler 9 | . . . 1 . . . . . 1 . . . . . . 5 1 . . . . 1 . . . Duelist 12 | . . . 2 . . . 1 . . . . . . . 1 3 2 . . . 1 2 . . . Protector 3 | . . . 1 . . . . . . . . . . . . . 1 . . . 1 . . . . Sentry 35 | . . . 7 . . . 3 1 3 3 2 . . . . 5 7 1 . 1 1 1 . . . Demolisher 3 | . . . . . . . . . . . . . . . . . 1 . . . 2 . . . . Hunter 15 | . . . . . . 1 1 . 1 . 1 . . . . 1 2 . . 4 . 4 . . . Programmer 17 | . . . . . . . . . . 1 1 . . . 1 3 . . . . 1 10 . . . Heavy 1 | . . . . . . . . . . . . . . . . . 1 . . . . . . . . Behemoth 4 | . . . . . . . . . . . . . 1 . . . 2 . . . 1 . . . . Compactor 5 | . . . . . . . . . . . . . . . . . . . 5 . . . . . . Striker 1 | . . . . . . . . . . . . . . . . . . . . . 1 . . . . Decomposer 3 | . . . . . . . . . . . . . 3 . . . . . . . . . . . . Samaritan 3 | . . . . . . . . . . . . 3 . . . . . . . . . . . . . Master Thief 1 | . . . . . . . . . . . . . 1 . . . . . . . . . . . . Assembled 17 | . . 17 . . . . . . . . . . . . . . . . . . . . . . . Mutant 1 | . . . . . . . . . . . . 1 . . . . . . . . . . . . . Best Kill Streak 16 | 3 3 16 10 2 . 1 6 1 3 2 9 1 3 . 4 8 14 3 2 7 5 7 . . 1 Combat Bots Only 16 | . 3 16 6 1 . 1 3 1 2 2 4 1 3 . 4 4 14 2 2 5 5 4 . . 1 Max Kills in Single Turn 8 | 1 1 8 4 1 . 1 2 1 2 1 3 1 1 . 1 3 3 1 1 2 2 2 . . 1 Gunslinging 1 | . . . 1 . . . 1 . . . . . . . . . 1 . . . . . . . . Exploded 8 | . . 8 2 . . . . . . . . . . . . 3 2 . . . . . . . . Melee 1 | . . . . . . . . . . . . . . . . . . . . . . . . . 1 Uniques/NPCs Destroyed 1 | . . . . . . . . . . . . . . . . 1 . . . . . . . . . Warbot (-6/Factory) Combat | -11 -10 -10 -9 -9 -9 -8 -8 -8 -8 -8 -7 -7 -7 -7 -6 -6 -6 -5 -5 -5 -5 -4 -4 -4 -3 -------- Run | Yrd Mat Min Mat Min Exi Min Mat Gar Mat Gar Fac Low Low Dat Pro Fac Gar Fac Was Fac Gar Fac Upp Upp Res Hostile Shots Fired 2507 | . 53 27 148 4 . 8 32 . 30 22 99 19 72 . 32 289 360 5 . 96 226 645 178 . 162 Missed 728 | . 19 6 41 . . 2 5 . 9 3 29 6 19 . 11 99 122 1 . 22 38 174 73 . 49 Damage Taken 29172 | . 358 537 1673 56 . 102 382 . 318 221 664 102 918 . 351 2753 4150 100 . 1435 4591 6363 1815 . 2283 Core 4447 | . 58 126 258 . . 21 35 . 85 23 134 13 63 . 63 365 319 . . 20 446 722 385 . 1311 Absorbed by Shields 3628 | . . . . . . . . . . 36 104 . . . 75 487 120 . . 4 280 2299 76 . 147 Reduced by Siege Mode 143 | . . . . . . . . . . . . . . . . . 61 . . 37 45 . . . . Redirected to Shielding 20 | . . . . . . . . . . . . . . . 20 . . . . . . . . . . Ignored by Resistances 619 | . . . . . . . . . . . . . . . . . . . . . . 619 . . . Regen/Repaired (Parts) 197 | . . . 73 . . . 124 . . . . . . . . . . . . . . . . . . Core Remaining (%) 45 | 100 . 26 . . . 30 . . . 74 . . . . 61 . 19 . . . 53 . . 3 . Volleys Fired 1093 | 10 65 20 136 8 . 5 49 1 49 12 45 10 27 . 14 114 139 8 44 29 131 173 . . 4 Largest 4 | 2 2 2 3 3 . 3 4 4 4 4 4 4 4 . 4 4 4 4 4 4 4 4 . . 1 Hottest 281 | 90 130 130 195 69 . 69 92 92 100 100 100 100 98 . 94 180 211 114 204 204 244 281 . . 113 Shots Fired 3182 | 18 130 40 379 24 . 15 196 4 196 48 173 40 108 . 56 388 416 32 104 109 344 358 . . 4 Gun 2926 | 18 130 30 368 24 . 15 196 4 196 48 173 40 108 . 56 387 407 32 91 83 234 286 . . . Cannon 208 | . . . . . . . . . . . . . . . . . 4 . 6 26 105 63 . . 4 Launcher 21 | . . 10 11 . . . . . . . . . . . . . . . . . . . . . . Special 27 | . . . . . . . . . . . . . . . . 1 5 . 7 . 5 9 . . . Kinetic 2411 | . . . 206 24 . 15 196 4 196 48 173 40 108 . 56 330 311 32 91 83 224 274 . . . Thermal 502 | 10 130 30 162 . . . . . . . . . . . . . 51 . 6 10 96 3 . . 4 Explosive 21 | . . 10 11 . . . . . . . . . . . . . . . . . . . . . . Electromagnetic 221 | 8 . . . . . . . . . . . . . . . 57 49 . . 16 19 72 . . . Robot Hit Streak 67 | 4 9 9 14 9 . 9 30 5 13 9 12 6 18 . 10 17 67 10 18 25 21 15 . . 1 Robot Miss Streak 12 | 4 12 3 7 2 . 2 3 . 3 2 7 2 3 . 3 6 5 5 3 4 9 5 . . 2 Penetration Max 2 | . . . . . . . . . . . . . . . . 2 2 1 1 1 1 1 . . . Secondary Targets 46 | . 3 . 8 . . . 2 . 1 . 3 . 2 . 1 11 8 1 1 . . 5 . . . Max Gunslinging Chain 1 | . 1 . 1 . . . 1 . 1 . 1 . 1 . 1 1 1 1 1 . . 1 . . . Shots Hit Robots 2116 | 8 84 27 233 13 4 11 121 9 128 41 88 28 73 1 33 272 315 19 82 68 194 263 . . 1 Core Hits 1007 | 5 43 50 110 7 . 4 58 2 57 12 45 13 21 . 15 118 158 9 17 29 86 144 . . 4 Critical Kills 18 | . . . 2 . . . . . 2 . . . . . . 4 2 . 2 . 2 4 . . . Critical Parts Destroyed 18 | . . . . . . . . . 1 . 1 . . . . 5 3 . . . 3 5 . . . Critical Strikes 51 | . 3 1 6 . . . . . 3 . 1 . . . . 9 7 . 4 . 8 9 . . . Burn 9 | . 3 1 4 . . . . . . . . . . . . . . . . . 1 . . . . Meltdown 2 | . . . . . . . . . . . . . . . . . . . 1 . 1 . . . . Destroy 35 | . . . 2 . . . . . 2 . 1 . . . . 9 5 . 3 . 4 9 . . . Blast 2 | . . . . . . . . . . . . . . . . . . . . . 2 . . . . Corrupt 2 | . . . . . . . . . . . . . . . . . 2 . . . . . . . . Smash 1 | . . . . . . . . . 1 . . . . . . . . . . . . . . . . Melee Attacks 95 | . 5 . 3 . 4 1 2 22 2 36 2 7 . 1 . 7 3 . . . . . . . . Impact 63 | . . . 3 . . . 2 17 2 26 2 1 . . . 7 3 . . . . . . . . Slashing 5 | . 5 . . . . . . . . . . . . . . . . . . . . . . . . Piercing . | . . . . . . . . . . . . . . . . . . . . . . . . . . Sneak Attacks 20 | . . . . . 4 1 . 5 . 2 . 6 . 1 . 1 . . . . . . . . . Combat Hostiles 1 | . . . . . . . . . . 1 . . . . . . . . . . . . . . . Follow-up Attacks . | . . . . . . . . . . . . . . . . . . . . . . . . . . Damage Inflicted 47381 | 102 1283 1395 4826 190 . 109 1842 66 2100 594 2083 377 1191 . 598 6680 6306 407 1846 1823 4974 8509 . . 80 Guns 39448 | 102 1283 398 3821 190 . 109 1842 66 2039 594 1607 377 1191 . 598 5521 6216 407 1695 1063 3256 7073 . . . Cannons 4000 | . . . . . . . . . . . . . . . . . . . 151 667 1707 1436 . . 39 Explosions 3746 | . . 997 1005 . . . . . . . 476 . . . . 1085 90 . . 93 . . . . . Melee 135 | . . . . . . . . . 61 . . . . . . 74 . . . . . . . . . Ramming 52 | . . . . . . . . . . . . . . . . . . . . . 11 . . . 41 Kinetic 33398 | . . . 2090 190 . 109 1842 66 2039 594 1607 377 1191 . 598 4536 4782 407 1695 1063 3321 6891 . . . Thermal 7514 | 36 1283 398 1731 . . . . . . . 476 . . . . 576 1079 . 151 367 1335 43 . . 39 Explosive 2511 | . . 997 1005 . . . . . . . . . . . . 509 . . . . . . . . . Electromagnetic 3771 | 66 . . . . . . . . . . . . . . . 985 445 . . 393 307 1575 . . . Impact 135 | . . . . . . . . . 61 . . . . . . 74 . . . . . . . . . Slashing . | . . . . . . . . . . . . . . . . . . . . . . . . . . Piercing . | . . . . . . . . . . . . . . . . . . . . . . . . . . Highest Corruption 21 | . . . . . . . . . . 1 . . . . 1 1 . . 21 17 19 13 13 13 . Average Corruption 9 | . . . . . . . . . . 1 . . . . 1 1 . . 15 17 18 5 13 13 . Corruption Purged 7 | . . . . . . . . . . . . . . . . 2 . . 5 . . . . . . Corruption Blocked . | . . . . . . . . . . . . . . . . . . . . . . . . . . Effects 225 | . . . . . . . . . . 12 . . . . 5 8 . . 27 15 104 31 17 6 . Message Errors 48 | . . . . . . . . . . 4 . . . . 3 . . . 7 4 22 2 4 2 . Matter Fused 46 | . . . . . . . . . . 2 . . . . . 1 . . 4 4 26 4 3 2 . Heat Flow Errors 24 | . . . . . . . . . . 3 . . . . . 1 . . 3 1 12 2 . 2 . Energy Discharges 24 | . . . . . . . . . . 1 . . . . 1 1 . . 1 2 10 6 2 . . Parts Rejected 5 | . . . . . . . . . . . . . . . . . . . . 1 . 2 2 . . Parts Fused 2 | . . . . . . . . . . . . . . . . . . . . . 2 . . . . Data Loss (minor) 25 | . . . . . . . . . . 1 . . . . 1 2 . . 4 1 8 5 3 . . Data Loss (major) 7 | . . . . . . . . . . . . . . . . 2 . . . . 5 . . . . Misfires 9 | . . . . . . . . . . 1 . . . . . 1 . . 1 . 4 2 . . . Alerts 5 | . . . . . . . . . . . . . . . . . . . . . 4 1 . . . Misdirections 4 | . . . . . . . . . . . . . . . . . . . . . 1 . 3 . . Weapon Failures 26 | . . . . . . . . . . . . . . . . . . . 7 2 10 7 . . . Overload Shots . | . . . . . . . . . . . . . . . . . . . . . . . . . . Overflow Damage 300 | . . 20 13 . . . . . . . 98 . . . . 83 . . . 60 . 26 . . . Projectiles 63 | . . . . . . . . . . . . . . . . . . . . 37 . 26 . . . Explosions 183 | . . 20 13 . . . . . . . 98 . . . . 29 . . . 23 . . . . . Melee 54 | . . . . . . . . . . . . . . . . 54 . . . . . . . . . Knockbacks 6 | . . . . . . . . . . . . . . . . . . . . . 6 . . . . Impact . | . . . . . . . . . . . . . . . . . . . . . . . . . . Kinetic 6 | . . . . . . . . . . . . . . . . . . . . . 6 . . . . Secondary . | . . . . . . . . . . . . . . . . . . . . . . . . . . Self-Inflicted Damage 222 | . . . 111 . . . . . . . . . . . . 67 . . . 37 . . . . 7 Shots 4 | . . . 2 . . . . . . . . . . . . 1 . . . 1 . . . . . Rammed 25 | . . . . . . . . . . . . . . . . . . . . . 3 . . . 22 Targets Rammed 26 | . . . . . . . . . . . . . . . . . . . . . 3 . . . 23 Kicked . | . . . . . . . . . . . . . . . . . . . . . . . . . . Crushed 1 | . . . . . . . . . . . . . . . . . . . . . . . . . 1 Highest Temperature 530 | 120 54 63 332 63 . 72 57 15 268 284 358 240 246 . 75 256 394 75 310 349 278 530 . 214 60 Average Temperature 83 | 54 10 18 87 28 . 31 15 10 47 104 98 124 67 . 27 68 98 34 137 117 96 118 . 103 27 Received Heat Transfer 5652 | . 144 60 519 30 . . 81 . 108 57 96 29 132 . 18 904 1201 18 . 288 706 1082 . . 179 Effects 16 | . . . 3 . . . . . . . 1 3 . . . . 4 . 1 . . 4 . . . Shutdowns 4 | . . . . . . . . . . . . . . . . . . . 1 . . 3 . . . Energy Bleed 4 | . . . . . . . . . . . . 1 . . . . 2 . . . . 1 . . . Interference 7 | . . . 3 . . . . . . . . 2 . . . . 2 . . . . . . . . Matter Decay 1 | . . . . . . . . . . . 1 . . . . . . . . . . . . . . Siege Activations 8 | . . . . . . . . . . . . . . . . . 1 . . 2 5 . . . . Total Turns 207 | . . . . . . . . . . . . . . . . . 61 . . 65 81 . . . . Longest Duration 61 | . . . . . . . . . . . . . . . . . 61 . . 44 44 . . . . Robots Corrupted 7 | . . . . . . . . . . . . . . . . 1 . . . 1 . 5 . . . Combat Hostiles 7 | . . . . . . . . . . . . . . . . 1 . . . 1 . 5 . . . Parts Fried 18 | 1 . . . . . . . . . . . . . . . 3 . . . 2 . 12 . . . Impact Corruptions 1 | . . . . . . . . . . . . . . . . 1 . . . . . . . . . Robots Melted 2 | . . . . . . . . . . . . . . . . . . . 1 . 1 . . . . Combat Hostiles 2 | . . . . . . . . . . . . . . . . . . . 1 . 1 . . . . Parts Melted 16 | . 7 . 4 . . . . . . . . . 1 . . . 2 . 1 . 1 . . . . Heat Transferred 13733 | 111 3089 824 4158 . . . . . . . 400 . . . . 550 2114 . 148 309 1893 100 . . 37 Parts Sabotaged 1 | . . . . . . . . . . . . . . . . . . . . . . 1 . . . Parts Stolen 2 | . . . . . . . . . . . . . 2 . . . . . . . . . . . . Parts Stripped . | . . . . . . . . . . . . . . . . . . . . . . . . . . Power Chain Reactions 5 | . . . . . . . . . . . . . . . . 4 1 . . . . . . . . Alert | -11 -10 -10 -9 -9 -9 -8 -8 -8 -8 -8 -7 -7 -7 -7 -6 -6 -6 -5 -5 -5 -5 -4 -4 -4 -3 ------- Run | Yrd Mat Min Mat Min Exi Min Mat Gar Mat Gar Fac Low Low Dat Pro Fac Gar Fac Was Fac Gar Fac Upp Upp Res Peak Influence 1954 | 20 308 121 806 306 . 80 263 61 147 421 660 . . . . 983 1954 1601 564 755 1385 1055 . . 353 Initial 1025 | . 13 91 . 238 . . 31 11 29 . 220 . . . . . 505 1025 560 232 528 726 . . 272 Average 483 | 8 143 40 518 154 . 12 81 44 67 179 267 . . . . 666 1300 1351 492 479 1032 773 . . 289 Maximum Alert Level 5 | . 1 . 3 1 . . 1 . . 2 2 . . . . 3 5 5 2 3 4 3 . . 1 Low Security (%) 39 | 100 76 100 8 60 . 100 91 100 100 66 38 . . . . 4 . . . . . . . . . Level 1 11 | . 23 . 15 39 . . 8 . . 31 42 . . . . . . . 23 34 . . . . 100 Level 2 21 | . . . 65 . . . . . . 1 18 . . . . 53 13 . 76 57 16 32 . . . Level 3 16 | . . . 10 . . . . . . . . . . . . 41 24 32 . 8 37 67 . . . Level 4 7 | . . . . . . . . . . . . . . . . . 29 45 . . 46 . . . . Level 5 3 | . . . . . . . . . . . . . . . . . 32 22 . . . . . . . High Security . | . . . . . . . . . . . . . . . . . . . . . . . . . . Max Security . | . . . . . . . . . . . . . . . . . . . . . . . . . . Sterilizations 1 | . . . 1 . . . . . . . . . . . . . . . . . . . . . . Squads Dispatched 56 | . 5 . 12 . . . 4 . 2 . 3 . . . . 11 . 1 . 4 . 12 . . 2 Investigation 17 | . 3 . 7 . . . 2 . 2 . 1 . . . . . . . . . . 1 . . 1 Extermination 7 | . . . . . . . . . . . 1 . . . . 2 . . . . . 4 . . . Reinforcement 12 | . 2 . 3 . . . . . . . . . . . . 2 . . . 1 . 3 . . 1 Assault 13 | . . . 2 . . . . . . . 1 . . . . 5 . 1 . . . 4 . . . Garrison 7 | . . . . . . . 2 . . . . . . . . 2 . . . 3 . . . . . Intercept . | . . . . . . . . . . . . . . . . . . . . . . . . . . Searches Triggered . | . . . . . . . . . . . . . . . . . . . . . . . . . . Data Miner Redirects 9 | . . . . . . . . . . . . . . . . 4 . . . . . 4 . . 1 Construction Impeded 1 | . . . . . . . . . . . . . . . . . . . . . . 1 . . . Haulers Reinforced 4 | . . . . . . . . . . . . . . . . 1 . . . 1 . 2 . . . Active Scanning Responses 1 | . . . . . . . . . . . . . . . . . 1 . . . . . . . . Cargo Convoy Interrupts . | . . . . . . . . . . . . . . . . . . . . . . . . . . Alert ID Control Effect 1 | . . . . . . . . . . . . . . . . . . . . . 1 . . . . Stealth | -11 -10 -10 -9 -9 -9 -8 -8 -8 -8 -8 -7 -7 -7 -7 -6 -6 -6 -5 -5 -5 -5 -4 -4 -4 -3 --------- Run | Yrd Mat Min Mat Min Exi Min Mat Gar Mat Gar Fac Low Low Dat Pro Fac Gar Fac Was Fac Gar Fac Upp Upp Res Distress Signals 19 | . 3 . 3 . . . 1 . 5 . 1 . . . . . . 1 . . . 4 . . 1 Communications Jammed 4 | . . . . . . . . . . . . . . . . . . . . . . 4 . . . Distress Signals 4 | . . . . . . . . . . . . . . . . . . . . . . 4 . . . Times Spotted 560 | . 33 20 70 3 . 4 25 . 26 14 33 12 10 . 9 61 49 7 5 16 57 77 5 . 24 Peak Tracking Total 12 | . 4 12 8 2 . 3 4 . 3 6 5 4 3 . 4 5 7 5 2 4 6 8 4 . 11 Tactical Retreats 50 | . 1 1 1 . . 2 3 . 1 2 4 4 . . . 2 6 . . 2 12 4 1 . 4 Traps | -11 -10 -10 -9 -9 -9 -8 -8 -8 -8 -8 -7 -7 -7 -7 -6 -6 -6 -5 -5 -5 -5 -4 -4 -4 -3 ------- Run | Yrd Mat Min Mat Min Exi Min Mat Gar Mat Gar Fac Low Low Dat Pro Fac Gar Fac Was Fac Gar Fac Upp Upp Res Traps Triggered 39 | . . . 3 . . . 1 5 2 4 . . . . . 1 7 1 . . 12 2 . . 1 Indirectly . | . . . . . . . . . . . . . . . . . . . . . . . . . . Trap Hack Attempts . | . . . . . . . . . . . . . . . . . . . . . . . . . . Triggered . | . . . . . . . . . . . . . . . . . . . . . . . . . . Disarmed . | . . . . . . . . . . . . . . . . . . . . . . . . . . Reprogrammed . | . . . . . . . . . . . . . . . . . . . . . . . . . . Reused . | . . . . . . . . . . . . . . . . . . . . . . . . . . Traps Extracted . | . . . . . . . . . . . . . . . . . . . . . . . . . . Installed . | . . . . . . . . . . . . . . . . . . . . . . . . . . Triggered 4 | . . . . . . . . . . . . 3 . . . . . . . . . . 1 . . Most Traps Carried 1 | . . . . . . . . . . . . 1 1 . . . . . . . . . . . . Machines | -11 -10 -10 -9 -9 -9 -8 -8 -8 -8 -8 -7 -7 -7 -7 -6 -6 -6 -5 -5 -5 -5 -4 -4 -4 -3 ---------- Run | Yrd Mat Min Mat Min Exi Min Mat Gar Mat Gar Fac Low Low Dat Pro Fac Gar Fac Was Fac Gar Fac Upp Upp Res Machines Disabled 85 | . 1 . 5 . . . . . . 1 22 1 . . . 19 10 7 . 6 6 7 . . . Max in Single Turn 18 | . 1 . 2 . . . . . . 1 18 1 . . . 8 2 3 . 3 1 1 . . . Garrison Access 4 | . . . . . . . . . . . 2 . . . . 1 . 1 . . . . . . . Garrison Relay 8 | . . . . . . . . . . 1 . . . . . . 3 . . . 4 . . . . Phase Generator 1 | . . . . . . . . . . . . . . . . . 1 . . . . . . . . Machines Repaired . | . . . . . . . . . . . . . . . . . . . . . . . . . . Machines Dismantled . | . . . . . . . . . . . . . . . . . . . . . . . . . . Machines Sabotaged . | . . . . . . . . . . . . . . . . . . . . . . . . . . Overloaded Fab Kills . | . . . . . . . . . . . . . . . . . . . . . . . . . . Hacking | -11 -10 -10 -9 -9 -9 -8 -8 -8 -8 -8 -7 -7 -7 -7 -6 -6 -6 -5 -5 -5 -5 -4 -4 -4 -3 --------- Run | Yrd Mat Min Mat Min Exi Min Mat Gar Mat Gar Fac Low Low Dat Pro Fac Gar Fac Was Fac Gar Fac Upp Upp Res Machines Accessed 85 | . 8 1 15 . 2 . 12 . 9 1 13 1 . 4 . 9 3 1 . 1 1 4 . . . Terminals 50 | . 6 1 9 . . . 9 . 6 1 9 . . . . 3 3 . . . 1 2 . . . Fabricators 3 | . . . . . . . . . . . 1 . . . . 1 . . . . . 1 . . . Repair Stations 7 | . . . 2 . . . 1 . . . 1 . . . . 2 . . . . . 1 . . . Recycling Units 5 | . 2 . 2 . . . . . 1 . . . . . . . . . . . . . . . . Scanalyzers 6 | . . . 2 . . . 1 . 1 . 1 . . . . 1 . . . . . . . . . Garrison Access 7 | . . . . . . . 1 . 1 . 1 . . . . 2 . 1 . 1 . . . . . Total Hacks 300 | . 31 3 67 . 2 . 37 . 42 2 47 1 . 30 . 18 7 2 . 1 2 8 . . . Successful 181 | . 20 2 43 . 2 . 21 . 29 1 18 1 . 30 . 8 3 1 . 1 . 1 . . . Failed 118 | . 11 1 24 . . . 16 . 12 1 29 . . . . 10 4 1 . . 2 7 . . . Catastrophic 14 | . . . 2 . . . . . 1 1 5 . . . . 1 . 1 . . 1 2 . . . Database Lockouts 1 | . . . . . . . . . 1 . . . . . . . . . . . . . . . . Manual 129 | . 18 2 28 . 1 . 23 . 20 1 27 . . . . 6 . 1 . . . 2 . . . Terminals 186 | . 29 3 37 . . . 29 . 30 2 36 . . . . 7 7 . . . 2 4 . . . Fabricators 8 | . . . . . . . . . . . 3 . . . . 3 . . . . . 2 . . . Repair Stations 15 | . . . 5 . . . 3 . . . 2 . . . . 3 . . . . . 2 . . . Recycling Units 8 | . 2 . 5 . . . . . 1 . . . . . . . . . . . . . . . . Scanalyzers 38 | . . . 20 . . . 4 . 10 . 2 . . . . 2 . . . . . . . . . Garrison Access 12 | . . . . . . . 1 . 1 . 4 . . . . 3 . 2 . 1 . . . . . Terminal Hacks 87 | . 10 2 11 . 2 . 6 . 11 1 7 1 . 30 . 3 3 . . . . . . . . Record 13 | . . . . . 1 . 1 . . . . . . 11 . . . . . . . . . . . Part Schematic 9 | . . . . . . . . . . . . . . 9 . . . . . . . . . . . Robot Schematic 9 | . 2 . . . . . . . . . . . . 7 . . . . . . . . . . . Robot Analysis 6 | . 2 1 . . . . 1 . 1 . 1 . . . . . . . . . . . . . . Prototype ID Bank 12 | . 2 . 5 . . . . . 2 . . . . 3 . . . . . . . . . . . Open Door 1 | . . . . . . . . . . . . 1 . . . . . . . . . . . . . Branch Access Points 3 | . . . 1 . . . 1 . . . 1 . . . . . . . . . . . . . . Emergency Access Points 2 | . . . . . . . . . . 1 . . . . . . 1 . . . . . . . . Terminal Index 3 | . 1 . . . . . 1 . . . 1 . . . . . . . . . . . . . . Unreport Threat 10 | . . . 4 . . . 1 . 2 . 2 . . . . 1 . . . . . . . . . Locate Traps 6 | . 1 . . . . . . . 4 . 1 . . . . . . . . . . . . . . Dispatch Records 1 | . 1 . . . . . . . . . . . . . . . . . . . . . . . . Investigation Status 1 | . . . . . . . . . 1 . . . . . . . . . . . . . . . . Assault Status 1 | . . . . . . . . . 1 . . . . . . . . . . . . . . . . Hauler Manifests 2 | . 1 . . . . . . . . . . . . . . 1 . . . . . . . . . Registered Components 1 | . . . 1 . . . . . . . . . . . . . . . . . . . . . . Registered Prototypes 1 | . . . . . . . . . . . 1 . . . . . . . . . . . . . . Zone Layout 3 | . . 1 . . . . 1 . . . . . . . . 1 . . . . . . . . . Garrison Registry 1 | . . . . . . . . . . . . . . . . . 1 . . . . . . . . Patrol Navigation 1 | . . . . . . . . . . . . . . . . . 1 . . . . . . . . Derelict Proto ID Bank 1 | . . . . . 1 . . . . . . . . . . . . . . . . . . . . Fabricator Hacks 1 | . . . . . . . . . . . . . . . . 1 . . . . . . . . . Network Status 1 | . . . . . . . . . . . . . . . . 1 . . . . . . . . . Repair Station Hacks 6 | . . . 3 . . . 2 . . . . . . . . . . . . . . 1 . . . Scan Component 4 | . . . 2 . . . 1 . . . . . . . . . . . . . . 1 . . . Repair 2 | . . . 1 . . . 1 . . . . . . . . . . . . . . . . . . Recycling Unit Hacks . | . . . . . . . . . . . . . . . . . . . . . . . . . . Scanalyzer 29 | . . . 16 . . . 3 . 8 . 1 . . . . 1 . . . . . . . . . Insert Component 15 | . . . 8 . . . 1 . 4 . 1 . . . . 1 . . . . . . . . . Analyze 14 | . . . 8 . . . 2 . 4 . . . . . . . . . . . . . . . . Garrison Access Hacks 7 | . . . . . . . 1 . 1 . 1 . . . . 2 . 1 . 1 . . . . . Unlock Access 4 | . . . . . . . 1 . 1 . . . . . . 1 . . . 1 . . . . . Seal Access 3 | . . . . . . . . . . . 1 . . . . 1 . 1 . . . . . . . Unauthorized Hacks 51 | . 10 . 13 . . . 9 . 9 . 9 . . . . 1 . . . . . . . . . Terminals 42 | . 8 . 10 . . . 8 . 7 . 8 . . . . 1 . . . . . . . . . Botnet 12 | . 2 . 4 . . . 2 . 2 . 1 . . . . 1 . . . . . . . . . Operators 3 | . 1 . . . . . 1 . . . 1 . . . . . . . . . . . . . . Skim 27 | . 5 . 6 . . . 5 . 5 . 6 . . . . . . . . . . . . . . Fabricators 1 | . . . . . . . . . . . 1 . . . . . . . . . . . . . . Haulers 1 | . . . . . . . . . . . 1 . . . . . . . . . . . . . . Repair Stations 1 | . . . 1 . . . . . . . . . . . . . . . . . . . . . . Mechanics 1 | . . . 1 . . . . . . . . . . . . . . . . . . . . . . Recycling Units 4 | . 2 . 1 . . . . . 1 . . . . . . . . . . . . . . . . Tunnel 4 | . 2 . 1 . . . . . 1 . . . . . . . . . . . . . . . . Scanalyzers 3 | . . . 1 . . . 1 . 1 . . . . . . . . . . . . . . . . Extract 3 | . . . 1 . . . 1 . 1 . . . . . . . . . . . . . . . . Garrison Access . | . . . . . . . . . . . . . . . . . . . . . . . . . . Data Cores Recovered 3 | . . . . . . . . . . . 1 . . . . 1 . 1 . . . . . . . Used . | . . . . . . . . . . . . . . . . . . . . . . . . . . Hacking Detections 71 | . 6 1 14 . . . 12 . 6 1 13 . . . . 9 2 1 . 1 1 4 . . . Full Trace Events 8 | . 1 . 4 . . . . . . . 1 . . . . . . . . . 1 1 . . . Feedback Events . | . . . . . . . . . . . . . . . . . . . . . . . . . . Feedback Blocked . | . . . . . . . . . . . . . . . . . . . . . . . . . . Robot Schematics Acquired 9 | . 2 . . . . . . . . . . . . 7 . . . . . . . . . . . Robots Built . | . . . . . . . . . . . . . . . . . . . . . . . . . . Authchips . | . . . . . . . . . . . . . . . . . . . . . . . . . . Time . | . . . . . . . . . . . . . . . . . . . . . . . . . . Total Robot Build Rating . | . . . . . . . . . . . . . . . . . . . . . . . . . . Part Schematics Acquired 29 | . . . 9 . . . 6 . 5 . . . . 9 . . . . . . . . . . . Parts Built . | . . . . . . . . . . . . . . . . . . . . . . . . . . Authchips . | . . . . . . . . . . . . . . . . . . . . . . . . . . Time . | . . . . . . . . . . . . . . . . . . . . . . . . . . Total Part Build Rating . | . . . . . . . . . . . . . . . . . . . . . . . . . . Parts Repaired 2 | . . . 1 . . . 1 . . . . . . . . . . . . . . . . . . Time 83 | . . . 32 . . . 51 . . . . . . . . . . . . . . . . . . Parts Recycled . | . . . . . . . . . . . . . . . . . . . . . . . . . . Recycled Matter . | . . . . . . . . . . . . . . . . . . . . . . . . . . Retrieved Matter . | . . . . . . . . . . . . . . . . . . . . . . . . . . Retrieved Components . | . . . . . . . . . . . . . . . . . . . . . . . . . . Parts Scanalyzed 15 | . . . 8 . . . 1 . 4 . 1 . . . . 1 . . . . . . . . . Part Schematics Acquired 13 | . . . 8 . . . 1 . 4 . . . . . . . . . . . . . . . . Parts Damaged 2 | . . . . . . . . . 1 . . . . . . 1 . . . . . . . . . Bothacking | -11 -10 -10 -9 -9 -9 -8 -8 -8 -8 -8 -7 -7 -7 -7 -6 -6 -6 -5 -5 -5 -5 -4 -4 -4 -3 ------------ Run | Yrd Mat Min Mat Min Exi Min Mat Gar Mat Gar Fac Low Low Dat Pro Fac Gar Fac Was Fac Gar Fac Upp Upp Res Used RIF Installer 5 | . . . . . . . . 2 . 1 . . . . . . 1 . . . 1 . . . . Threat Obfuscator 1 | . . . . . . . . . . . . . . . . . . . . . 1 . . . . Patrol Navigation 1 | . . . . . . . . 1 . . . . . . . . . . . . . . . . . Alert ID Control 1 | . . . . . . . . . . . . . . . . . 1 . . . . . . . . Autooverride 1 | . . . . . . . . . . 1 . . . . . . . . . . . . . . . Robots Hacked 30 | . . . . . 4 1 . 1 . 7 . . . 1 . . 2 . 5 . 4 5 . . . Non-combat 2 | . . . . . 2 . . . . . . . . . . . . . . . . . . . . Combat 28 | . . . . . 2 1 . 1 . 7 . . . 1 . . 2 . 5 . 4 5 . . . Autooverrided 2 | . . . . . . . . . . . . . . . . . . . . . 1 1 . . . Robot Hacks Applied 31 | . . . . . 4 1 . 1 . 7 . . . 1 . . 2 . 6 . 4 5 . . . parse_system 10 | . . . . . 4 1 . 1 . . . . . 1 . . 1 . 1 . . 1 . . . ignore_targets 5 | . . . . . . . . . . . . . . . . . . . 5 . . . . . . overwrite_iff 2 | . . . . . . . . . . . . . . . . . . . . . . 2 . . . streamctrl_high 4 | . . . . . . . . . . 4 . . . . . . . . . . . . . . . formatsys_high 10 | . . . . . . . . . . 3 . . . . . . 1 . . . 4 2 . . . Relay Couplers Released 38 | . . . . . . . . . . 9 1 . . . . . 11 . . . 17 . . . . Machine Destruction 34 | . . . . . . . . . . 5 1 . . . . . 11 . . . 17 . . . . Programmers 4 | . . . . . . . . . . 4 . . . . . . . . . . . . . . . Attached 15 | . . . . . . . . . . 4 . . . . . . 1 . 1 . 5 4 . . . Fabnet Peak Effective % . | . . . . . . . . . . . . . . . . . . . . . . . . . . Robots Rewired 10 | . . . . . . . . 3 . . . 3 . . . 1 2 . . . . 1 . . . Allies Hacked 1 | . . . . . . . . . . . . . . . . 1 . . . . . . . . . Hacks Repelled . | . . . . . . . . . . . . . . . . . . . . . . . . . . Allies | -11 -10 -10 -9 -9 -9 -8 -8 -8 -8 -8 -7 -7 -7 -7 -6 -6 -6 -5 -5 -5 -5 -4 -4 -4 -3 -------- Run | Yrd Mat Min Mat Min Exi Min Mat Gar Mat Gar Fac Low Low Dat Pro Fac Gar Fac Was Fac Gar Fac Upp Upp Res Total Allies 34 | . . 3 . 1 . . . 3 . 7 . 3 . . 1 1 5 . . . 4 6 . . . Largest Group 4 | . . 3 3 1 . . . 3 3 2 2 3 2 . 1 1 4 4 2 . 2 2 . . . Highest-Rated Group 408 | . . 40 40 31 . . . 15 15 31 31 93 62 . 99 99 408 408 175 . 58 112 . . . Highest-Rated Ally 148 | . . 16 16 31 . . . 5 5 16 16 31 31 . 99 99 148 148 95 . 29 56 . . . Total Orders 17 | . . . . . . . . 2 . . . . . . . . . 5 . . . 7 . 2 1 STAY 1 | . . . . . . . . 1 . . . . . . . . . . . . . . . . . FOLLOW 1 | . . . . . . . . 1 . . . . . . . . . . . . . . . . . EXPLORE 11 | . . . . . . . . . . . . . . . . . . 3 . . . 5 . 2 1 RETURN 4 | . . . . . . . . . . . . . . . . . . 2 . . . 2 . . . Ally Attacks 318 | . . . 81 7 . . . . 10 20 1 36 23 . 12 21 14 28 18 . 22 25 . . . Total Damage 7488 | . . . 645 64 . . . . 48 114 32 419 299 . 994 1439 728 712 994 . 530 470 . . . Kills 52 | . . . 11 1 . . . . . 3 1 8 2 . 2 9 2 9 1 . 2 1 . . . Allies Corrupted 1 | . . . . . . . . . . . . . . . . . . . . . . 1 . . . Allies Melted 1 | . . . . 1 . . . . . . . . . . . . . . . . . . . . . Turrets Deployed 2 | . . . . . . . . . . . . . . . . . 1 . . . 1 . . . . Intel | -11 -10 -10 -9 -9 -9 -8 -8 -8 -8 -8 -7 -7 -7 -7 -6 -6 -6 -5 -5 -5 -5 -4 -4 -4 -3 ------- Run | Yrd Mat Min Mat Min Exi Min Mat Gar Mat Gar Fac Low Low Dat Pro Fac Gar Fac Was Fac Gar Fac Upp Upp Res Robot Analysis Total 6 | . 2 1 . . . . 1 . 1 . 1 . . . . . . . . . . . . . . Derelict Logs Recovered 7 | . . 1 . 2 . . . . . . . 1 1 . 1 . . . . . . . . 1 . Drone Launches 18 | . . . . . . . . . . . . . . . . . . 4 . . . 5 7 2 . Drone Recoveries 17 | . . . . . . . . . . . . . . . . . . 4 . . . 4 7 1 1 Decoded 0b10 Intel 29 | . . . . . . . . . . . . . . . . . . 25 4 . . . . . . Items 29 | . . . . . . . . . . . . . . . . . . 25 4 . . . . . . Exploration | -11 -10 -10 -9 -9 -9 -8 -8 -8 -8 -8 -7 -7 -7 -7 -6 -6 -6 -5 -5 -5 -5 -4 -4 -4 -3 ------------- Run | Yrd Mat Min Mat Min Exi Min Mat Gar Mat Gar Fac Low Low Dat Pro Fac Gar Fac Was Fac Gar Fac Upp Upp Res Turns Passed 32803 | 135 1934 1231 3109 1004 507 526 2046 546 1896 1224 1486 1386 3715 265 1106 2176 2158 358 520 289 2202 2234 317 165 268 Spaces Moved 15256 | 62 824 711 1508 638 225 363 946 273 699 529 1045 750 1435 140 708 858 744 225 255 93 874 820 223 75 233 Core 186 | 7 . . . . . . . . . . . . . . . . . . . . . . . . 179 Treads 4786 | 55 824 150 . . . . 404 45 507 230 . 303 1435 68 . 290 313 . . . . 1 45 75 41 Legs 220 | . . . . . . . . . . . . . . . . . . . . . . 220 . . . Wheels 10051 | . . 561 1508 638 225 363 542 228 192 299 1045 447 . 72 708 568 431 225 255 93 874 599 178 . . Hover 13 | . . . . . . . . . . . . . . . . . . . . . . . . . 13 Flight . | . . . . . . . . . . . . . . . . . . . . . . . . . . Fastest Speed 48 | 50 160 110 95 150 120 120 120 120 120 120 120 120 250 120 120 120 150 120 120 120 120 115 107 170 48 Average Speed 167 | 147 183 160 125 150 144 120 175 163 214 180 121 172 250 185 130 177 201 125 132 139 171 178 130 170 80 Slowest Speed 680 | 160 240 320 155 150 150 120 250 250 330 250 135 250 250 250 135 312 320 165 150 210 180 680 250 170 250 Overloaded Moves . | . . . . . . . . . . . . . . . . . . . . . . . . . . Propulsion Burnouts . | . . . . . . . . . . . . . . . . . . . . . . . . . . Robots Hopped . | . . . . . . . . . . . . . . . . . . . . . . . . . . Cave-ins Triggered . | . . . . . . . . . . . . . . . . . . . . . . . . . . Exploration Rate (%) 58 | 5 97 99 98 98 61 67 65 41 60 75 33 88 97 79 82 23 91 9 89 3 74 17 38 14 8 Regions Visited 25 Branch Regions 10 Pre-discovered Areas 14 | . 2 . 3 . 1 . 1 . 4 . 1 . 1 1 . . . . . . . . . . . Known Exits Taken 12 | . . 1 1 . . 1 1 . 1 . 1 . . . 1 1 . . . 1 . 1 1 1 . Unknown Exits Taken 7 | 1 1 . . 1 1 . . . . . . 1 1 1 . . . . . . . . . . . Scrap Searched 21 | . . 2 . 4 . 1 . . . . . 4 6 . 2 . . . . . . . 2 . . Spaces Dug 38 | . 1 . 3 . . . 2 10 1 8 1 . . . . 5 5 . . 1 1 . . . . Terrain Destroyed 569 | . 1 82 81 . . . 2 10 1 8 92 . . . . 65 96 22 7 49 19 31 . . 3 Melee 33 | . 1 . 3 . . . 2 10 1 8 1 . . . . 5 2 . . . . . . . . Projectile 82 | . . . . . . . . . . . . . . . . 2 6 . 7 15 19 30 . . 3 AOE 453 | . . 82 78 . . . . . . . 91 . . . . 58 88 22 . 34 . . . . . Terrain Rammed . | . . . . . . . . . . . . . . . . . . . . . . . . . . Walls Destroyed . | . . . . . . . . . . . . . . . . . . . . . . . . . . Machines Disabled . | . . . . . . . . . . . . . . . . . . . . . . . . . . Actions | -11 -10 -10 -9 -9 -9 -8 -8 -8 -8 -8 -7 -7 -7 -7 -6 -6 -6 -5 -5 -5 -5 -4 -4 -4 -3 --------- Run | Yrd Mat Min Mat Min Exi Min Mat Gar Mat Gar Fac Low Low Dat Pro Fac Gar Fac Was Fac Gar Fac Upp Upp Res Total 20343 | 85 1109 757 2452 671 404 438 1205 330 989 723 1213 827 1520 144 858 1263 1118 281 361 183 1340 1414 247 113 298 Wait 2503 | 2 160 10 655 24 153 63 172 5 207 75 71 21 34 . 121 174 93 32 25 18 144 190 2 38 14 Move 15235 | 61 823 710 1507 637 224 362 946 272 699 528 1044 749 1434 139 707 857 743 225 254 93 873 819 222 74 233 Hop . | . . . . . . . . . . . . . . . . . . . . . . . . . . Pick Up 258 | 6 22 2 39 . 5 . 10 . 3 3 8 5 10 . 5 23 30 3 7 9 20 42 3 . 3 Fast Attach 204 | 6 . 3 14 . . . 2 . 7 5 8 6 . . 2 19 22 3 4 9 31 51 2 . 10 Attach 150 | . 1 1 7 . . . 1 . . 4 2 2 6 . 4 12 17 2 2 8 23 44 10 1 3 Detach 43 | . . . 3 . . . . . . 1 1 . 2 . 3 . 4 . . 3 11 12 1 . 2 Swap 286 | . 16 10 40 1 10 7 14 14 11 23 16 16 . 4 1 26 19 3 7 2 19 23 4 . . Drop 331 | . 17 1 48 1 8 . 9 . 11 8 16 11 7 . 1 31 29 5 18 12 29 60 3 . 6 Fire 1093 | 10 65 20 136 8 . 5 49 1 49 12 45 10 27 . 14 114 139 8 44 29 131 173 . . 4 Melee 95 | . 5 . 3 . 4 1 2 22 2 36 2 7 . 1 . 7 3 . . . . . . . . Ram 7 | . . . . . . . . . . . . . . . . . . . . . . . . . 7 Kick . | . . . . . . . . . . . . . . . . . . . . . . . . . . Crush 19 | . . . . . . . . . . . . . . . . . . . . . 3 . . . 16 Escape Stasis 116 | . . . . . . . . 16 . 26 . . . . . . 19 . . . 55 . . . . Rewire 3 | . . . . . . . . . . 2 . . . . . . . . . . 1 . . . . Trap . | . . . . . . . . . . . . . . . . . . . . . . . . . . Miscellaneous . | . . . . . . . . . . . . . . . . . . . . . . . . . . Route ------- -11/Scrapyard -10/Materials (discovered 5 exits: *Mat x3 / *Min / Sub) -10/Mines (discovered 2 exits: *Mat x2) -9/Materials (discovered 6 exits: *Mat x3 / *Min / *Sto x2) -9/Mines (discovered 3 exits: *Mat x2 / *Exi) -9/Exiles -8/Mines (discovered 2 exits: *Mat x2) -8/Materials (discovered 4 exits: *Fac x3 / Gar) -8/Garrison (discovered 2 exits: *Mat x2) -8/Materials (discovered 4 exits: *Fac x3 / Gar) -8/Garrison (discovered 3 exits: *Fac x3) -7/Factory (discovered 5 exits: Fac x3 / *Low x2) -7/Lower Caves -7/Lower Caves (discovered 2 exits: *Fac / *Dat) -7/Data Miner -6/Proximity Caves -6/Factory (discovered 2 exits: Low / Gar) -6/Garrison (discovered 3 exits: *Fac x3) -5/Factory -5/Waste -5/Factory -5/Garrison (discovered 3 exits: *Fac x3) -4/Factory (discovered 3 exits: *Upp / Ext x2) -4/Upper Caves -4/Upper Caves -3/Research (discovered 1 exit: Res) History --------- Turn | Location | Event 8 | -11/Scrapyard | Discovered new exit (range 14) 136 | -11/Scrapyard | Entered Materials 307 | -10/Materials | Build established: Mutant 472 | -10/Materials | Discovered new exit (range 13) 736 | -10/Materials | Discovered new exit (range 10) 1331 | -10/Materials | Learned 4 Recycling zone layouts 1356 | -10/Materials | Discovered new exit (range 16) 1369 | -10/Materials | Learned 4 Recycling zone layouts 1397 | -10/Materials | Identified exit to Materials 1397 | -10/Materials | Identified exit to Subcaves 1397 | -10/Materials | Learned location of 1 exit from Materials 1415 | -10/Materials | Learned location of 2 exits from Mines 1422 | -10/Materials | Learned 4 Recycling zone layouts 1437 | -10/Materials | Learned location of 1 exit from Recycling 2070 | -10/Materials | Entered Mines 2071 | -10/Mines | Assembled infested the area 2106 | -10/Mines | Destroyed 16 combat bots 2108 | -10/Mines | Core integrity fell below 50% 2382 | -10/Mines | Assisted by bots powering up and referring to "LRC-V3" 3121 | -10/Mines | Learned 8 Materials zone layouts 3134 | -10/Mines | Received a Rocket Launcher from a helpful Derelict 3301 | -10/Mines | Entered Materials 3301 | -9/Materials | Accompanied by 3 allies 3301 | -9/Materials | Evolved 2 slots: Propulsion x1, Weapon x1 3302 | -9/Materials | Identified exit to Storage 3303 | -9/Materials | Identified exit to Materials 3303 | -9/Materials | Identified exit to Mines 3393 | -9/Materials | Discovered exit to Storage (range 12) 3440 | -9/Materials | Discovered exit to Materials (range 15) 3543 | -9/Materials | Lost 4 parts (1p1n1u1w) 3847 | -9/Materials | Build established: Scavenger-Gunner 3961 | -9/Materials | Repaired Particle Gun 4334 | -9/Materials | Build established: Gunner 4501 | -9/Materials | First assault squad dispatched 4619 | -9/Materials | Core integrity fell below 50% 4680 | -9/Materials | Build established: Tank 5630 | -9/Materials | Learned 4 Recycling zone layouts 5664 | -9/Materials | Learned Storage security intel 5699 | -9/Materials | Learned location of 3 exits from Materials 5710 | -9/Materials | Learned Storage stockpile data 5716 | -9/Materials | Sterilization system engaged 5716 | -9/Materials | Non-combat units ordered to evacuate 5816 | -9/Materials | Combat units ordered to evacuate 6016 | -9/Materials | Ambient heat levels rising (+10) 6166 | -9/Materials | Ambient heat levels rising (+10) 6316 | -9/Materials | Ambient heat levels rising (+10) 6410 | -9/Materials | Entered Mines 6422 | -9/Mines | Deemed a non-threat by the Exiles lab entrance 6423 | -9/Mines | Discovered new exit (range 5) 6443 | -9/Mines | Received a Mining Laser from a helpful Derelict 6487 | -9/Mines | Met a Derelict bent on vengeance 6888 | -9/Mines | Learned Materials emergency access door positions 7176 | -9/Mines | Found a hidden stash of uninstalled traps 7414 | -9/Mines | Entered Exiles 7452 | -9/Exiles | Met 8R-AWN 7479 | -9/Exiles | Met EX-HEX 7522 | -9/Exiles | Met EX-BIN 7540 | -9/Exiles | Aligned with FarCom system 7542 | -9/Exiles | Given EX-Vault access code 7579 | -9/Exiles | Opened EX-Vault 7593 | -9/Exiles | Found Deploy-a-Sentry 7595 | -9/Exiles | Found Deploy-a-Sentry 7598 | -9/Exiles | Found Deploy-a-Sentry 7615 | -9/Exiles | Found XL Autogun Array 7648 | -9/Exiles | Warned to stay clear of 0b10 Research branches 7660 | -9/Exiles | Exiles lab attacked by MAIN.C 7719 | -9/Exiles | Learned location of Zion (-6) 7759 | -9/Exiles | Discovered new exit (range 10) 7921 | -9/Exiles | Stole two prototypes: XL Autogun Array, Deploy-a-Sentry 7921 | -9/Exiles | Entered Mines 8006 | -8/Mines | Build established: Mutant 8368 | -8/Mines | Discovered exit to Materials (range 13) 8439 | -8/Mines | Build established: Skirmisher 8447 | -8/Mines | Entered Materials 8447 | -8/Materials | Evolved 2 slots: Utility x1, Weapon x1 8448 | -8/Materials | Identified exit to Factory 8799 | -8/Materials | Garrison activated, responded to threat 9255 | -8/Materials | Garrison activated, responded to threat 9671 | -8/Materials | Learned location of 3 exits from Factory 9747 | -8/Materials | Learned Storage stockpile data 9812 | -8/Materials | Learned Factory stockpile data 9849 | -8/Materials | Repaired Imp. Assault Rifle 9866 | -8/Materials | Learned 4 Factory zone layouts 10004 | -8/Materials | Learned 2 Lower Caves zone layouts 10047 | -8/Materials | Learned Factory trap positions 10101 | -8/Materials | Learned 8 Factory zone layouts 10493 | -8/Materials | Identified exit to Garrison 10493 | -8/Materials | Entered Garrison 10519 | -8/Garrison | Installed Relay Interface Framework 10599 | -8/Garrison | Triggered checkpoint 10695 | -8/Garrison | Triggered checkpoint 10699 | -8/Garrison | Discovered new exit (range 13) 10723 | -8/Garrison | Discovered new exit (range 3) 10847 | -8/Garrison | Triggered checkpoint 10952 | -8/Garrison | Expanded RIF knowledge: Patrol Navigation 11039 | -8/Garrison | Entered Materials 11039 | -8/Materials | Accompanied by 3 allies 11109 | -8/Materials | Lost 3 allies 12575 | -8/Materials | Central database locked down 12654 | -8/Materials | Learned Factory emergency access door positions 12690 | -8/Materials | Learned location of Lower Caves (-6) 12691 | -8/Materials | Learned Factory trap positions 12935 | -8/Materials | Identified exit to Garrison 12935 | -8/Materials | Entered Garrison 13021 | -8/Garrison | Triggered checkpoint 13192 | -8/Garrison | Garrison Relay disabled 13290 | -8/Garrison | Lost 3 allies 13424 | -8/Garrison | Discovered exit to Factory (range 9) 13463 | -8/Garrison | Triggered checkpoint 13611 | -8/Garrison | Build established: Tank 13839 | -8/Garrison | Triggered checkpoint 13853 | -8/Garrison | Discovered exit to Factory (range 10) 14061 | -8/Garrison | Triggered checkpoint 14119 | -8/Garrison | Discovered exit to Factory (range 9) 14132 | -8/Garrison | Expanded RIF knowledge: Autooverride 14159 | -8/Garrison | Entered Factory 14159 | -7/Factory | Accompanied by 2 allies 14159 | -7/Factory | Evolved 2 slots: Utility x2 14160 | -7/Factory | Identified exit to Factory 14161 | -7/Factory | FarCom data flow suspended 14162 | -7/Factory | Loaded intel: 126 trap records 14940 | -7/Factory | Build established: Skirmisher 15202 | -7/Factory | Identified exit to Lower Caves 15405 | -7/Factory | Build established: Hacker-Gunner 15615 | -7/Factory | Learned location of Hub_04(d) (-4) 15645 | -7/Factory | Entered Lower Caves 15857 | -7/Lower Caves | Spotted B-75 Beast 15862 | -7/Lower Caves | Build established: Gunner 15978 | -7/Lower Caves | Attacked by a delusional Derelict stockpiling Unaware 16656 | -7/Lower Caves | Found Prototype Device 16745 | -7/Lower Caves | Discovered new exit (range 15) 17031 | -7/Lower Caves | Entered another Lower Caves area 17031 | -7/Lower Caves | Accompanied by 2 allies 17032 | -7/Lower Caves | Encountered a Warlord checkpoint 17047 | -7/Lower Caves | Discovered exit to Factory (range 8) 17464 | -7/Lower Caves | Spotted B-75 Beast 17573 | -7/Lower Caves | Attracted the attention of an 0b10 checkpoint 18122 | -7/Lower Caves | Destroyed B-75 Beast 18150 | -7/Lower Caves | Lost 3 parts (1n2w) 18383 | -7/Lower Caves | Identified Heart of Steel 18670 | -7/Lower Caves | Build established: Skirmisher 20250 | -7/Lower Caves | Spotted 4F-7L1(f) 20251 | -7/Lower Caves | Encountered a Master Thief 20251 | -7/Lower Caves | Spotted QS-UXF(f) 20252 | -7/Lower Caves | Encountered a Master Thief 20252 | -7/Lower Caves | Deploy-a-Sentry stolen by Master Thief 20252 | -7/Lower Caves | Spotted E5-QWQ(f) 20253 | -7/Lower Caves | Encountered a Master Thief 20260 | -7/Lower Caves | Fire Trap stolen by Master Thief 20263 | -7/Lower Caves | Destroyed QS-UXF(f) 20598 | -7/Lower Caves | Discovered new exit (range 16) 20746 | -7/Lower Caves | Entered Data Miner 20746 | -7/Data Miner | Discovered new exit (range 6) 20784 | -7/Data Miner | Met Data Miner 20854 | -7/Data Miner | Learned location of Section 7 (-2) 20854 | -7/Data Miner | Acquired the access code to Warlord's prototype stash 20894 | -7/Data Miner | Received God Mode back door access code from Data Miner 21011 | -7/Data Miner | Entered Proximity Caves 21322 | -6/Proximity Caves | Heart of Steel transformed into Warbot 21625 | -6/Proximity Caves | Build established: Tank 21638 | -6/Proximity Caves | Spotted B-75 Beast 21671 | -6/Proximity Caves | Allies destroyed B-75 Beast 21713 | -6/Proximity Caves | Discovered exit to Factory (range 16) 22117 | -6/Proximity Caves | Entered Factory 22117 | -6/Factory | Accompanied by 1 ally (Warbot) 22117 | -6/Factory | Evolved 2 slots: Power x1, Propulsion x1 22118 | -6/Factory | Identified exit to Lower Caves 22119 | -6/Factory | Loaded intel: 112 trap records 22467 | -6/Factory | First assault squad dispatched 22606 | -6/Factory | Lost 3 parts (1p1u1w) 22653 | -6/Factory | Incoming assault squad redirected 23348 | -6/Factory | Incoming assault squad redirected 23405 | -6/Factory | Lost 6 parts (1p2n1u2w) 23539 | -6/Factory | Incoming assault squad redirected 23544 | -6/Factory | Incoming assault squad redirected 24191 | -6/Factory | Build established: Scavenger-Skirmisher 24232 | -6/Factory | Identified exit to Garrison 24293 | -6/Factory | Entered Garrison 24359 | -6/Garrison | Heavy support dispatched to Factory 24370 | -6/Garrison | H-XX Assembler disabled 24455 | -6/Garrison | Found Prototype Device 24455 | -6/Garrison | Identified Active Sensor Suite 24542 | -6/Garrison | Phase Generator disabled 24581 | -6/Garrison | Rescued a captive Derelict 24649 | -6/Garrison | Triggered checkpoint 24665 | -6/Garrison | Garrison Relay disabled 24684 | -6/Garrison | Build established: Skirmisher 24813 | -6/Garrison | Spotted B-90 Cyclops 24821 | -6/Garrison | Spotted B-75 Beast 24822 | -6/Garrison | Core integrity fell below 50% 24860 | -6/Garrison | DAS Turret deployed 24867 | -6/Garrison | Destroyed B-90 Cyclops 24906 | -6/Garrison | Destroyed B-75 Beast 24932 | -6/Garrison | Lost 6 parts (1n5w) 25196 | -6/Garrison | Lost 6 parts (1p3n2w) 25211 | -6/Garrison | Core integrity fell below 20% 25248 | -6/Garrison | Destroyed 14 combat bots 25413 | -6/Garrison | Found Hvy. Reflective Plating 25432 | -6/Garrison | Rewired B-90 Cyclops 25437 | -6/Garrison | Rewired B-75 Beast 25509 | -6/Garrison | Build established: Scavenger-Tank 25872 | -6/Garrison | Garrison Relay disabled 25903 | -6/Garrison | Discovered new exit (range 11) 26006 | -6/Garrison | Found embedded Infiltrators 26120 | -6/Garrison | Discovered new exit (range 44) 26120 | -6/Garrison | Discovered new exit (range 75) 26120 | -6/Garrison | Discovered new exit (range 26) 26237 | -6/Garrison | Garrison Relay disabled 26277 | -6/Garrison | Expanded RIF knowledge: Alert ID Control 26451 | -6/Garrison | Entered Factory 26451 | -5/Factory | Accompanied by 4 allies 26451 | -5/Factory | Evolved 2 slots: Power x1, Utility x1 26751 | -5/Factory | First assault squad dispatched 26776 | -5/Factory | Build established: Scavenger-Gunner 26809 | -5/Factory | Sucked down chute 26809 | -5/Factory | Entered Waste 26824 | -5/Waste | 2 allies followed down the chute 26824 | -5/Waste | EMP discharged 26831 | -5/Waste | Spotted C-40 Crusher 26846 | -5/Waste | Allies destroyed C-40 Crusher 26901 | -5/Waste | Spotted C-40 Crusher 26912 | -5/Waste | Spotted C-40 Crusher 26920 | -5/Waste | Spotted C-40 Crusher 26924 | -5/Waste | EMP discharged 26924 | -5/Waste | System corruption reached 10% 26938 | -5/Waste | Destroyed C-40 Crusher 27019 | -5/Waste | Spotted C-40 Crusher 27024 | -5/Waste | EMP discharged 27028 | -5/Waste | Spotted C-40 Crusher 27042 | -5/Waste | Destroyed C-40 Crusher 27051 | -5/Waste | Destroyed C-40 Crusher 27082 | -5/Waste | Found Damper Plating 27124 | -5/Waste | EMP discharged 27174 | -5/Waste | Discovered new exit (range 15) 27188 | -5/Waste | Destroyed C-40 Crusher 27224 | -5/Waste | EMP discharged 27271 | -5/Waste | Destroyed C-40 Crusher 27324 | -5/Waste | EMP discharged 27329 | -5/Waste | Entered Factory 27389 | -5/Factory | Garrison activated, responded to threat 27402 | -5/Factory | Build established: Scavenger-Tank 27618 | -5/Factory | Identified exit to Garrison 27618 | -5/Factory | Entered Garrison 27654 | -5/Garrison | Expanded RIF knowledge: Threat Obfuscation 27800 | -5/Garrison | Triggered checkpoint 27822 | -5/Garrison | Garrison Relay disabled 27864 | -5/Garrison | Triggered checkpoint 27864 | -5/Garrison | Spotted B-75 Beast 27865 | -5/Garrison | Triggered checkpoint 27929 | -5/Garrison | Destroyed B-75 Beast 27981 | -5/Garrison | Triggered checkpoint 28057 | -5/Garrison | Lost 9 parts (2p2n1u4w) 28114 | -5/Garrison | Triggered checkpoint 28223 | -5/Garrison | Discovered new exit (range 12) 28298 | -5/Garrison | Triggered checkpoint 28442 | -5/Garrison | Garrison Relay disabled 28573 | -5/Garrison | Lost 3 parts (1p2w) 28758 | -5/Garrison | Discovered new exit (range 10) 28794 | -5/Garrison | Triggered checkpoint 28836 | -5/Garrison | Garrison Relay disabled 29098 | -5/Garrison | Triggered checkpoint 29148 | -5/Garrison | Garrison Relay disabled 29208 | -5/Garrison | Discovered new exit (range 10) 29353 | -5/Garrison | Spotted Striker 29355 | -5/Garrison | Spotted Striker 29382 | -5/Garrison | DAS Turret deployed 29392 | -5/Garrison | Destroyed Striker 29392 | -5/Garrison | Allies destroyed Striker 29441 | -5/Garrison | Lost 7 parts (1p3u3w) 29775 | -5/Garrison | Build established: Bothacker-Tank 29820 | -5/Garrison | Entered Factory 29820 | -4/Factory | Accompanied by 2 allies 29820 | -4/Factory | Evolved 2 slots: Utility x2 29821 | -4/Factory | Identified exit to Extension 30320 | -4/Factory | First assault squad dispatched 30462 | -4/Factory | Incoming assault squad redirected 30757 | -4/Factory | Incoming assault squad redirected 30879 | -4/Factory | Incoming assault squad redirected 31351 | -4/Factory | Lost 4 parts (1p1u2w) 31519 | -4/Factory | Lost 3 parts (1p1u1w) 31671 | -4/Factory | System corruption reached 10% 31716 | -4/Factory | Core integrity fell below 50% 31722 | -4/Factory | Lost 3 parts (2p1n) 31857 | -4/Factory | Build established: Bothacker-Gunner 31865 | -4/Factory | Discovered new exit (range 10) 32017 | -4/Factory | Incoming investigation squad redirected 32053 | -4/Factory | Identified exit to Upper Caves 32054 | -4/Factory | Entered Upper Caves 32076 | -4/Upper Caves | Lost 11 parts (2p3n2u4w) 32264 | -4/Upper Caves | Discovered new exit (range 3) 32265 | -4/Upper Caves | Identified exit to Upper Caves 32314 | -4/Upper Caves | Core integrity fell below 20% 32348 | -4/Upper Caves | Lost 9 parts (1p5n3u) 32371 | -4/Upper Caves | Entered another Upper Caves area 32380 | -4/Upper Caves | Learned location of 1 exit from Research 32395 | -4/Upper Caves | Discovered new exit (range 13) 32535 | -4/Upper Caves | Identified exit to Research 32536 | -4/Upper Caves | Entered Research 32536 | -3/Research | Accompanied by 1 ally 32536 | -3/Research | Evolved 2 slots: Propulsion x2 32537 | -3/Research | Identified exit to Research 32608 | -3/Research | Build established: Mutant 32630 | -3/Research | Incoming investigation squad redirected 32688 | -3/Research | Core integrity fell below 50% 32752 | -3/Research | Lost 12 parts (1p6n5u) 32761 | -3/Research | Core integrity fell below 20% 32804 | -3/Research | Destroyed by G-67 Veteran with Plasma Rifle Last Messages --------------- 32697_ Acquired Nova Cannon. 32714_ Broken Adv. Signal Interpreter destroyed. 32721_ Broken Adv. ECM Suite destroyed. 32723_ Dropped Nova Cannon. 32724_ Dropped Broken Enh. Nova Cannon. 32724_ Acquired Nova Cannon. 32754_ Slug penetrates Wall. 32760_ Penetrated by Slug. 32760_ Slug penetrates Wall. 32761_ Acquired Phase Shifter. 32769_ Acquired Unknown Processor. 32769_ Identified Core Analyzer. 32772_ Acquired Adv. Reaction Control System. 32780_ Dropped Phase Shifter. 32783_ W-44 Eye sends out distress signal. 32785_ Penetrated by Slug. 32785_ Slug penetrates Wall. 32796_ Slammed into S-43 Plague. 32798_ O-32 Director knocked back. 32804_ Critical hit (Burn: +50). Map ----- +----------------------------------------------------+ | # #???# #????????????????????????? | | # #???# #????????????????????????? | | # #???# #????????????????????????? | | # #???# #????????????????????????? | | ################## #????????????????????????? | | #??????#!! ! + #????????????????????????? | | #??????#!! #+######?????########???????????? | | #??????# ! # #????####### #???????????? | | ???????# * # #????# !# #???????????? | | ???????#####+##+## ###### T" # #???????????? | | ???????????# "" / #???????????? | | ???????????# ########### # #???????????? | | ?????????### # # # #???????????? | | ?????????# + #### #########???????????? | | ?????????# # ! #??# #???????????????????? | | ?????????# # #??# ##??????????????????? | | ?????????+ +? #??# "####?######????????? | | ?????????# #? """"" #??# # #????????? | | ?????????# #??""""" #### # #????????? | | ?????????# #??""""" + H% / #????????? | | ?????????# #???########## # / #????????? | | ?????????# #????????????# #? #????????? | | ?????????# #????????????### ###?? #????????? | | ?????????# #??????????????# #?????##?#????????? | | ?????????# ################ #?????????????????? | | ?????????# ## @ #?????????????????? | | ?????????# ## ##### #?????????????????? | | ????????? ?# g ????# #?????????????????? | | ????????? ?# """ ?????# +?????????????????? | | ????????? ?# "T ?????# #?????????????????? | | ????????? ?+ """ ??????# #?????????????????? | | ??????????? ?# ??????# ?????????????????? | | ???????????????# ???????# ?????????????????? | | ???????????????#######???????# ?????????????????? | | ????????????????????????????? ?????????????????? | | ????????????????????????????? ?????????????????? | | ????????????????????????????? ?????????????????? | | ????????????????????????????? ?????????????????? | | ?????????????????????????????###?????????????????? | | ?????????????????????????????????????????????????? | | ?????????????????????????????????????????????????? | | ?????????????????????????????????????????????????? | | ?????????????????????????????????????????????????? | | ?????????????????????????????????????????????????? | | ?????????????????????????????????????????????????? | | ?????????????????????????????????????????????????? | | ?????????????????????????????????????????????????? | | ?????????????????????????????????????????????????? | | ?????????????????????????????????????????????????? | | ?????????????????????????????????????????????????? | +----------------------------------------------------+ Best States ------------- Heat Dissipation 105 Coolant Potential 100 Energy Generation 53 Energy Capacity 1160 Matter Stores 550 Matter Capacity 550 Sight Range 20 Robot Scan Range 20 Terrain Scan Density 10 ECM Strength 2 Jamming Range 12 Cloak Strength 2 Corruption Block 15 Armor Coverage 3200 Resistance: TH 30 Resistance: EM 90 Propulsion Shielding 66 Phase Shifting 10 Evasion (%) 62 Targeting Accuracy 8 Core Analysis 6 Recoil Reduction 6 Salvage Targeting 1 Offensive Hacking 10 Defensive Hacking 10 Relay Coupler Types 3 Relay Coupler Value 56 Item Schematics ----------------- Datajack | -9/Materials | Scanalyzed Hacking Suite | -9/Materials | Scanalyzed Mni. Grenade Launcher | -9/Materials | Scanalyzed Hardlight Generator | -9/Materials | Scanalyzed Shield Generator | -9/Materials | Scanalyzed Terrain Scan Processor | -9/Materials | Extracted ECM Suite | -9/Materials | Scanalyzed Hcp. Storage Unit | -9/Materials | Scanalyzed Arm. Wheel | -9/Materials | Scanalyzed Arm. Treads | -8/Materials | Scanalyzed EM Shotgun | -8/Materials | Extracted Particle Gun | -8/Materials | Extracted Great Maul | -8/Materials | Extracted Spread Laser | -8/Materials | Extracted Field Recycling Unit | -8/Materials | Extracted Imp. Datajack | -8/Materials | Scanalyzed Enh. Autogun | -8/Materials | Scanalyzed Remote Shield | -8/Materials | Scanalyzed Machine Analyzer | -8/Materials | Scanalyzed Minigun | -8/Materials | Extracted Combat Drone Bay | -7/Data Miner | Free Lgt. Regenerative Plating | -7/Data Miner | Free Cld. Aerolev Unit | -7/Data Miner | Free Exp. Targeting Computer | -7/Data Miner | Free Imp. Heavy Laser | -7/Data Miner | Free Cmb. Gravmag System | -7/Data Miner | Free Point Defense System | -7/Data Miner | Free Enh. Gauss Cannon | -7/Data Miner | Free Power Amplifier | -7/Data Miner | Free Robot Schematics ------------------ M-13 Machinist | -10/Materials | Hacked O-16 Technician | -10/Materials | Hacked B-48 Gladiator | -7/Data Miner | Free O-24 Administrator | -7/Data Miner | Free M-14 Sweeper | -7/Data Miner | Free X-57 Shotgunner | -7/Data Miner | Free G-50 Soldier | -7/Data Miner | Free E-15 Imp | -7/Data Miner | Free Y-64 Sentinel | -7/Data Miner | Free Fabricated ------------ Nothing Alien Tech Used ----------------- None Achievements -------------- None Challenges ------------ None Game ------ Seed UltimateSapperBotcube Manual? 0 Play Time 05:23:39 Cumulative 191.8 hours Start 2025.03.17 @ 19:20:20 End 2025.03.19 @ 00:01:06 Sessions 5 Manual Loads 0 Difficulty Rogue Special Mode None Game No. 92 Rogue 92 Adventurer 0 Explorer 0 Win Type - Total 0 Types 0/0/0/0/0/0/0/0/0 Lore% 53 Gallery% 71 Achievement% 57 Wizard Run 0 Options --------- Layout 0 ASCII 0 Keyboard 0 Movement Mouse Keybinds 0 Fullscreen 1 Font 24/Smallcaps Map View 183x50 Zoom Use 0% Tactical HUD 1 Map Filters NONE Filters NONE Steam 0 RUN: 9d0a0d06-8d3f-4d5c-9e81-49124502eebd